{"text_format":"1","workbook":"xlsx","n_sheets":2,"sheets":["Bid Sub","Sheet1"],"not_rendered":{"charts":0,"images":2,"macros":0,"external_links":0,"defined_names":1,"comments":0,"pivot_tables":0},"unopened":[],"bounds":{"document_bytes":16777216,"sheet_cells":100000,"rows_first":2000,"rows_last":500,"rows_between":2000,"halvings":0,"cell_chars":16384,"cell_head_chars":4096},"cells_cut":0,"cells_raw":0,"read":"whole","date_system":"1900"}

{"sheet":"Bid Sub","index":0,"n_rows":82,"n_cols":32,"rows_kept":82,"cut":false,"hidden":false,"merged":[[21,15,21,32],[9,0,9,32],[22,0,22,32],[23,0,23,32],[17,0,17,32],[0,0,2,8],[3,0,3,6],[4,0,7,24],[8,0,8,32],[10,28,10,32],[11,28,11,32],[12,3,12,32],[13,7,13,32],[14,28,14,32],[15,28,15,32],[16,29,16,32],[11,5,11,14],[11,15,11,21],[11,22,11,27],[4,31,4,32],[5,31,5,32],[6,31,6,32],[7,31,7,32],[4,25,4,30],[5,25,5,30],[7,25,7,30],[6,25,6,30],[12,0,12,2],[13,0,13,6],[14,0,15,7],[14,8,14,14],[14,15,14,21],[14,22,14,27],[15,8,15,14],[15,15,15,21],[15,22,15,27],[10,0,11,4],[10,5,10,14],[10,15,10,21],[10,22,10,27],[16,0,16,4],[16,12,16,13],[16,16,16,22],[16,23,16,26],[16,27,16,28],[16,5,16,7],[16,8,16,9],[20,0,20,9],[20,10,20,15],[20,16,20,25],[20,26,20,32],[18,0,18,9],[18,10,18,15],[18,16,18,25],[18,26,18,32],[19,0,19,9],[19,10,19,15],[19,16,19,25],[19,26,19,32],[26,30,26,32],[25,0,25,6],[25,7,25,9],[25,10,25,11],[25,12,25,13],[25,14,25,15],[25,16,25,21],[25,22,25,25],[25,30,25,32],[26,16,26,21],[26,22,26,25],[26,0,26,6],[26,7,26,9],[26,10,26,11],[26,12,26,13],[26,14,26,15],[27,7,27,8],[27,10,27,11],[27,12,27,13],[27,14,27,15],[27,16,27,21],[27,22,27,25],[28,0,28,6],[28,7,28,9],[28,10,28,11],[28,12,28,13],[28,14,28,15],[29,0,29,15],[29,16,29,26],[29,27,29,32],[33,0,33,6],[33,7,33,9],[33,10,33,11],[33,12,33,13],[33,14,33,15],[33,16,33,21],[33,22,33,25],[33,26,33,27],[33,28,33,29],[33,30,33,32],[32,7,32,9],[32,10,32,11],[32,12,32,13],[32,14,32,15],[32,16,32,21],[32,22,32,25],[32,26,32,27],[32,28,32,29],[32,30,32,32],[31,0,31,32],[34,7,34,8],[34,10,34,11],[34,12,34,13],[34,14,34,15],[34,16,34,21],[34,22,34,25],[34,28,34,29],[34,30,34,32],[34,0,34,6],[35,30,35,32],[35,0,35,6],[35,7,35,9],[35,10,35,11],[35,12,35,13],[35,14,35,15],[35,16,35,21],[35,22,35,25],[35,26,35,27],[35,28,35,29],[37,14,37,15],[37,16,37,21],[37,22,37,25],[37,26,37,27],[37,28,37,29],[37,30,37,32],[36,0,36,6],[36,7,36,9],[36,10,36,11],[36,12,36,13],[36,14,36,15],[36,16,36,21],[36,22,36,25],[36,26,36,27],[36,28,36,29],[37,0,37,6],[37,7,37,9],[37,10,37,11],[37,12,37,13],[42,30,42,32],[43,0,43,6],[43,7,43,9],[43,10,43,11],[43,12,43,13],[43,14,43,15],[43,16,43,21],[43,22,43,25],[43,26,43,27],[43,28,43,29],[43,30,43,32],[42,0,42,6],[42,7,42,9],[42,10,42,11],[42,12,42,13],[42,14,42,15],[42,16,42,21],[42,22,42,25],[42,26,42,27],[42,28,42,29],[44,30,44,32],[45,0,45,6],[45,7,45,9],[45,10,45,11],[45,12,45,13],[45,14,45,15],[45,16,45,21],[45,22,45,25],[45,26,45,27],[45,28,45,29],[45,30,45,32],[44,0,44,6],[44,7,44,9],[44,10,44,11],[44,12,44,13],[44,14,44,15],[44,16,44,21],[44,22,44,25],[44,26,44,27],[44,28,44,29],[47,30,47,32],[46,0,46,6],[46,7,46,9],[46,10,46,11],[46,12,46,13],[46,14,46,15],[46,16,46,21],[46,22,46,25],[46,26,46,27],[46,28,46,29],[47,0,47,6],[47,7,47,9],[47,10,47,11],[47,12,47,13],[47,14,47,15],[47,16,47,21],[47,22,47,25],[47,26,47,27],[47,28,47,29],[46,30,46,32],[62,3,62,32],[50,16,50,21],[50,22,50,25],[50,26,50,27],[50,28,50,29],[61,22,61,32],[50,0,51,15],[61,14,61,21],[60,0,60,11],[60,16,60,26],[61,0,61,13],[59,12,59,15],[60,12,60,15],[57,28,57,32],[59,28,59,32],[60,28,60,32],[57,12,57,15],[58,12,58,15],[81,0,81,18],[81,19,81,32],[64,0,64,4],[65,0,65,4],[64,15,64,19],[64,5,64,14],[65,15,65,19],[65,5,65,14],[24,22,24,25],[24,28,24,29],[24,30,24,32],[24,10,24,11],[24,12,24,13],[38,30,38,32],[41,22,41,25],[38,0,38,6],[38,7,38,9],[38,10,38,11],[38,12,38,13],[38,14,38,15],[38,16,38,21],[38,22,38,25],[38,26,38,27],[62,0,62,2],[41,14,41,15],[41,16,41,21],[41,28,41,29],[48,0,48,6],[48,7,48,9],[48,10,48,11],[48,12,48,13],[48,14,48,15],[48,16,48,21],[48,22,48,25],[48,26,48,27],[48,28,48,29],[24,16,24,21],[27,0,27,6],[24,0,24,6],[41,30,41,32],[41,7,41,8],[58,28,58,32],[54,0,54,32],[50,30,50,32],[51,16,51,27],[51,28,51,32],[48,30,48,32],[49,0,49,6],[49,7,49,9],[49,10,49,11],[49,12,49,13],[49,14,49,15],[49,16,49,21],[49,22,49,25],[49,26,49,27],[49,28,49,29],[49,30,49,32],[41,0,41,6],[38,28,38,29],[36,30,36,32],[40,28,40,29],[40,30,40,32],[56,12,56,15],[56,28,56,32],[41,10,41,11],[41,12,41,13],[39,0,39,32],[40,0,40,6],[0,19,2,26],[0,28,2,32],[0,16,2,18],[28,16,28,32],[21,0,21,14],[3,7,3,16],[3,17,3,24],[3,25,3,32],[27,28,27,29],[27,30,27,32],[25,28,25,29],[26,28,26,29],[16,10,16,11],[16,14,16,15],[24,7,24,9],[24,14,24,15],[66,0,66,32],[67,0,80,32],[63,0,63,32],[32,0,32,6],[30,0,30,32],[52,0,52,32],[53,0,53,32],[55,0,55,32],[56,0,56,11],[57,0,57,11],[58,0,58,11],[59,0,59,11],[56,16,56,26],[57,16,57,26],[58,16,58,26],[59,16,59,26],[64,20,64,32],[65,20,65,32],[40,7,40,8],[40,10,40,11],[40,12,40,13],[40,14,40,15],[40,16,40,21],[40,22,40,25]]}
["SINGLE-FAMILY\nBID SUBMISSION"]
[]
[]
["PROGRAM TYPE",null,null,null,null,null,null,"Select One",null,null,null,null,null,null,null,null,null,"If Other:"]
["Instructions:\n1.   Please complete all property and contractor information in  Section One.  You will also need to verify if it is  a \n      one-story or two-story.\n3.   Section Two  must have all Soft Cost Total items completed. Enter the Quantity and the Unit Price to populate the\n      soft cost total.\n4.   Section Three must have all Hard Cost Total items completed.  Enter the Quantity and the Unit Price to populate \n      the hard cost total.  \n5.   Section Four should be completed ONLY if your are including Ancillary Items (see instructions below to determine if\n      this section applies). \nNOTE: \n     Verify your calculations for accuracy before submitting.\n     Under no circumstance should you duplicate a cost by placing it in two or more fields.\n     (See Amenities Sheet)",null,null,null,null,null,null,null,null,null,null,null,null,null,null,null,null,null,null,null,null,null,null,null,null,"Soft Cost Total",null,null,null,null,null,{"$f":"AB30","v":0}]
[null,null,null,null,null,null,null,null,null,null,null,null,null,null,null,null,null,null,null,null,null,null,null,null,null,"Hard Cost Total",null,null,null,null,null,{"$f":"AC52","v":14500}]
[null,null,null,null,null,null,null,null,null,null,null,null,null,null,null,null,null,null,null,null,null,null,null,null,null,"Ancillary Cost Total",null,null,null,null,null,{"$f":"W62","v":0}]
[null,null,null,null,null,null,null,null,null,null,null,null,null,null,null,null,null,null,null,null,null,null,null,null,null,"Total Project Costs",null,null,null,null,null,{"$f":"AF5+AF6+AF7","v":14500}]
["The Housing and Community Development Department Single Family Division (HCD SF) is seeking qualified contractors to provide plans, permitting, construction and warranty services for the home composition per the Scope of Work provided."]
["SECTION ONE"]
["Property Address"]
[null,null,null,null,null,"Street Address",null,null,null,null,null,null,null,null,null,"City",null,null,null,null,null,null,"State",null,null,null,null,null,"Zip Code"]
["Flood Hazard:",null,null,"Select One"]
["Contractor Name:",null,null,null,null,null,null,"Select One"]
["Contractor Address:"]
[null,null,null,null,null,null,null,null,"Street Address",null,null,null,null,null,null,"City",null,null,null,null,null,null,"State",null,null,null,null,null,"Zip Code"]
["Bedroom Count:",null,null,null,null,null,null,null,"Bath Count:",null,null,null,"Garage Size:",null,null,null,"Accessibility Requirement:",null,null,null,null,null,null,null,null,null,null,"HCAD #:"]
["SECTION ONE CONTINUED                                                                                                                                                                                                                                                 *  =  Basic Required Information"]
["   Total House Square Footage",null,null,null,null,null,null,null,null,null,{"$f":"SUM(K20+K21+AA20)","v":2400},null,null,null,null,null,"Conditioned Space Square Footage",null,null,null,null,null,null,null,null,null,{"$f":"SUM(K20+K21)","v":2000}]
["*  1st Floor Square Footage",null,null,null,null,null,null,null,null,null,1000,null,null,null,null,null,"*  Garage Square Footage",null,null,null,null,null,null,null,null,null,400]
["*  2nd Floor Square Footage\n      (if 2-Story)",null,null,null,null,null,null,null,null,null,1000,null,null,null,null,null,"*  Lot Size"]
["Is this unit a one or two story:",null,null,null,null,null,null,null,null,null,null,null,null,null,null,"    Select One"]
[]
["SECTION TWO"]
["SOFT COST",null,null,null,null,null,null,"QTY",null,null,"UOM",null,"UNIT PRICE",null,"TOTAL",null,"SOFT COST",null,null,null,null,null,"QTY",null,null,null,"UOM",null,"UNIT PRICE",null,"TOTAL"]
["Site Specific Plans",null,null,null,null,null,null,null,null,null,"Each",null,null,null,{"$f":"H26*M26","v":0},null,"Bonds",null,null,null,null,null,null,null,null,null,"Each",null,null,null,{"$f":"SUM(AC26*W26)","v":0}]
["Permits",null,null,null,null,null,null,null,null,null,"Each",null,null,null,{"$f":"H27*M27","v":0},null,"Survey",null,null,null,null,null,null,null,null,null,"Each",null,null,null,{"$f":"SUM(AC27*W27)","v":0}]
["Utility Connection\n(Short/long tap to include new\nwater meter)",null,null,null,null,null,null,null,null,null,"Each",null,null,null,{"$f":"H28*M28","v":0},null,"Dumpster & \nPort-a-Can",null,null,null,null,null,null,null,null,null,"Each",null,null,null,0]
["Utility Connection\n(New Sewer Tap)",null,null,null,null,null,null,null,null,null,"Each",null,null,null,{"$f":"H29*M29","v":0}]
[null,null,null,null,null,null,null,null,null,null,null,null,null,null,null,null,"SOFT COST TOTAL",null,null,null,null,null,null,null,null,null,null,{"$f":"SUM(O26:P29,AE26:AG28)","v":0}]
[]
["SECTION THREE"]
["HARD COST",null,null,null,null,null,null,"QTY",null,null,"UOM",null,"UNIT PRICE",null,"TOTAL",null,"HARD COST  ",null,null,null,null,null,"QTY",null,null,null,"UOM",null,"UNIT PRICE",null,"TOTAL"]
["Lot Clearing to include tree and debris removal",null,null,null,null,null,null,1,null,null,"Each",null,10000,null,{"$f":"H34*M34","v":10000},null,"Fill Dirt /\nPad Site Work",null,null,null,null,null,1,null,null,null,"Each",null,4500,null,{"$f":"W34*AC34","v":4500}]
["Landscaping\n(full yard of sod to include\nrequired shrubs per plan)",null,null,null,null,null,null,null,null,null,"Each",null,null,null,0,null,"Termite Treatment",null,null,null,null,null,null,null,null,null,"Each",null,null,null,0]
["Landscaping\n(two Live Oak Trees, minimum 2”caliper)",null,null,null,null,null,null,null,null,null,"Each",null,null,null,0,null,"Provide a 6’ Wooden Fence with 6” Rot Board at bottom",null,null,null,null,null,null,null,null,null,"LN FT",null,null,null,0]
["Foundation",null,null,null,null,null,null,null,null,null,"Square Feet (Sq.)",null,null,null,0,null,"Flatwork as per Plans",null,null,null,null,null,null,null,null,null,"Square Feet (Sq.)",null,null,null,0]
["Garage Door",null,null,null,null,null,null,null,null,null,"Each",null,null,null,0,null,"Plumbing Turnkey",null,null,null,null,null,null,null,null,null,"Each",null,null,null,0]
["Electrical\n(Price Includes Fixtures)",null,null,null,null,null,null,null,null,null,"Square Feet (Sq.)",null,null,null,0,null,"Framing Material/Labor",null,null,null,null,null,null,null,null,null,"Square Feet (Sq.)",null,null,null,0]
["SECTION THREE CONTINUED"]
["HARD COST",null,null,null,null,null,null,"QTY",null,null,"UOM",null,"UNIT PRICE",null,"TOTAL",null,"HARD COST",null,null,null,null,null,"QTY",null,null,null,"UOM",null,"UNIT PRICE",null,"TOTAL"]
["Interior Doors, Hardware and Trim",null,null,null,null,null,null,null,null,null,"Each",null,null,null,{"$f":"H42*M42","v":0},null,"Exterior Doors & Hardware",null,null,null,null,null,null,null,null,null,"Each",null,null,null,{"$f":"W42*AC42","v":0}]
["Windows/Blinds",null,null,null,null,null,null,null,null,null,"Each",null,null,null,{"$f":"H43*M43","v":0},null,"Insulation\n(Wall Attic Crawl Space)",null,null,null,null,null,null,null,null,null,"Square Feet (Sq.)",null,null,null,0]
["Exterior Veneer/Hardi/Brick",null,null,null,null,null,null,null,null,null,"Square Feet (Sq.)",null,null,null,0,null,"Cornice\n(Fascia & Soffit)",null,null,null,null,null,null,null,null,null,"Square Feet (Sq.)",null,null,null,0]
["Gutters & Downspouts/Splash Blocks",null,null,null,null,null,null,null,null,null,"LN FT",null,null,null,0,null,"Drywall\n(Entire Structure)",null,null,null,null,null,null,null,null,null,"Square Feet (Sq.)",null,null,null,0]
["Cabinets / Countertops",null,null,null,null,null,null,null,null,null,"Square Feet (Sq.)",null,null,null,0,null,"Flooring - Tile",null,null,null,null,null,null,null,null,null,"Square Feet (Sq.)",null,null,null,0]
["Flooring - Vinyl",null,null,null,null,null,null,null,null,null,"Square Feet (Sq.)",null,null,null,0,null,"Flooring - Carpet",null,null,null,null,null,null,null,null,null,"Square Feet (Sq.)",null,null,null,0]
["Paint Interior",null,null,null,null,null,null,null,null,null,"Square Feet (Sq.)",null,null,null,0,null,"Paint Exterior",null,null,null,null,null,null,null,null,null,"Square Feet (Sq.)",null,null,null,0]
["Roof\n(Specified Roofing)",null,null,null,null,null,null,null,null,null,"Square Feet (Sq.)",null,null,null,0,null,"Appliances\n(All Stainless Steel)",null,null,null,null,null,null,null,null,null,"Each",null,null,null,0]
["HVAC System\n(16 seer min)",null,null,null,null,null,null,null,null,null,"Each",null,null,null,0,null,"Porch or Street Side Mailbox",null,null,null,null,null,null,null,null,null,"Each",null,null,null,0]
[null,null,null,null,null,null,null,null,null,null,null,null,null,null,null,null,"House Demolition",null,null,null,null,null,null,null,null,null,"Each",null,null,null,0]
[null,null,null,null,null,null,null,null,null,null,null,null,null,null,null,null,"HARD COST TOTAL",null,null,null,null,null,null,null,null,null,null,null,{"$f":"SUM(O34:P52,AE34:AG51)","v":14500}]
[]
["SECTION FOUR"]
["Ancillary Items   (Cost Associated with an Elevation)\nThis section should only be utilized for items that go above and beyond the standard items listed above that may cause the base cost of the home to exceed the construction cap of $250,000 per unit. "]
["The total cost of the ancillary items should not exceed $50,000."]
["Ancillary Item",null,null,null,null,null,null,null,null,null,null,null,"Total",null,null,null,"Ancillary Item",null,null,null,null,null,null,null,null,null,null,null,"Total"]
["Flood Vents",null,null,null,null,null,null,null,null,null,null,null,null,null,null,null,"Brick for Elevation/Lattice \n(only include portion needed for elevation)"]
["Accessible Wheelchair Ramp/Lift/ ADA",null,null,null,null,null,null,null,null,null,null,null,null,null,null,null,"Stairs (Treated or Concrete)"]
["Crawl Space Spray Foam",null,null,null,null,null,null,null,null,null,null,null,null,null,null,null,"HOA/Conservation/Historic"]
["Hazard Abatement",null,null,null,null,null,null,null,null,null,null,null,null,null,null,null,"Sound Attenuation"]
[null,null,null,null,null,null,null,null,null,null,null,null,null,null,"ANCILLARY COST TOTAL",null,null,null,null,null,null,null,{"$f":"+M58+M59+M60+M61+AC58+AC59+AC60+AC61","v":0}]
["Note",null,null,"Bid price provided on this page to include all costs based on Contractor provided plans and specifications to include soft costs and site specific costs for turnkey construction. Bidder(s) shall provide house plans and specifications on 11” x 17” paper along with bids. House plans to include innovative architectural designs which enhance energy saving and reflect resilient construction methods. House plans will be designed in accordance with applicable Federal, State, local codes, REScheck standards for energy efficiency and Energy Star compliance. See Amenities Sheet and Scope of Work to ensure you have accounted for all items required."]
["SIGNATURE: By signing this document, I agree I have considered all project related costs in calculating the Total Project Cost listed on page one."]
["Printed Name:",null,null,null,null,null,null,null,null,null,null,null,null,null,null,"Signature:"]
["Title:",null,null,null,null,null,null,null,null,null,null,null,null,null,null,"Date:"]
["Notes"]
[]
[]
[]
[]
[]
[]
[]
[]
[]
[]
[]
[]
[]
[]
["BID SUBMISSION | CITY OF HOUSTON | HOUSING AND COMMUNITY DEVELOPMENT DEPARTMENT",null,null,null,null,null,null,null,null,null,null,null,null,null,null,null,null,null,null,"Nov. 2024"]

{"sheet":"Sheet1","index":1,"n_rows":25,"n_cols":1,"rows_kept":25,"cut":false,"hidden":false,"merged":[]}
[]
["Select One"]
["Community Housing Development Organizations (CHDO)"]
["New Home Development Program (NHDP)"]
["Community Empowerment Program (CEP)"]
["Home Repair Program (HRP)"]
["Other"]
[]
["Select One"]
["100 Year"]
["500 Year"]
["N/A"]
[]
["Select One"]
["Mayberry Homes"]
["JW Turner"]
["DSW Homes"]
["SLSCO"]
["PMG"]
["Rebuild Together Houston"]
["Habitat for Humanity"]
[]
["    Select One"]
["    One Story"]
["    Two Story"]